[Event "1st Bangalore GM-Open-B 2024"]
[Site "Bangalore"]
[Date "2024.01.18"]
[Round "1.1"]
[White "Nayak, Biswajit"]
[Black "Sundar Divij P"]
[Result "1-0"]
[ECO "D02"]
[WhiteElo "1990"]
[BlackElo "1270"]
[Annotator "RC"]
[PlyCount "61"]
[EventDate "2024.01.20"]
[EventType "swiss"]
[EventCountry "IND"]
[SourceTitle "playchess.com"]
[Source "ChessBase"]
[SourceQuality "1"]
[TimeControl "3600+30"]

1. Nf3 {[%emt 0:00:08]} d5 {[%emt 0:00:16]} 2. g3 {[%emt 0:00:12]} Nf6 {[%emt 0:01:16]} 3. Bg2 {[%emt 0:00:12]} e6 {[%emt 0:00:32]} 4. b3 {[%emt 0:00:28]} c5 {[%emt 0:00:52]} 5. Bb2 {[%emt 0:00:11]} Nc6 {[%emt 0:00:17]} 6. O-O {[%emt 0:00:10]} Be7 {[%emt 0:00:49]} 7. e3 {[%emt 0:00:47]} O-O {[%emt 0:00:28]} 8. d4 {[%emt 0:00:22]} b6 {[%emt 0:03:22]} 9. Nbd2 {[%emt 0:01:46]} Bb7 {[%emt 0:05:49]} 10. Ne5 {[%emt 0:03:26]} cxd4 {[%emt 0:02:20]} 11. exd4 {[%emt 0:00:27]} Qc7 {[%emt 0:12:39]} 12. Nxc6 {[%emt 0:05:37]} Bxc6 {[%emt 0:00:39]} 13. Rc1 {[%emt 0:00:20]} Qd7 {[%emt 0:00:49]} 14. Nf3 {[%emt 0:00:22]} Bb7 {[%emt 0:07:01]} 15. Ne5 {[%emt 0:00:17]} Qd6 {[%emt 0:01:40]} 16. Qe2 {[%emt 0:09:15]} a5 {[%emt 0:04:01]} 17. c4 {[%emt 0:02:41]} Nd7 {[%emt 0:02:09]} 18. Rfd1 {[%emt 0:08:51]} Rac8 {[%emt 0:07:08]} 19. Ba3 {[%emt 0:01:10]} Qxa3 {[%emt 0:02:51]} 20. Nxd7 {[%emt 0:00:06]} Rfe8 {[%emt 0:01:02]} 21. Nxb6 {[%emt 0:00:22]} Rc6 {[%emt 0:01:22]} 22. c5 {[%emt 0:00:55]} Rd8 {[%emt 0:01:48]} 23. Nxd5 {[%emt 0:01:16]} Bf8 {[%emt 0:01:09]} 24. Ne3 {[%emt 0:01:41]} Ba6 {[%emt 0:00:44]} 25. Nc4 {[%emt 0:00:32]} Rc7 {[%emt 0:01:04]} 26. Qe5 {[%emt 0:00:43]} Rxc5 {[%emt 0:01:19]} 27. dxc5 {[%emt 0:00:39]} Rxd1+ {[%emt 0:00:44]} 28. Rxd1 {[%emt 0:00:08]} Qxa2 {[%emt 0:00:04]} 29. Rd8 {[%emt 0:00:33]} Bxc4 {[%emt 0:00:41]} 30. Rxf8+ {[%emt 0:00:13]} Kxf8 {[%emt 0:00:07]} 31. Qd6+ {[%emt 0:00:04]} 1-0

[Event "1st Bangalore GM-Open-B 2024"]
[Site "Bangalore"]
[Date "2024.01.18"]
[Round "1.2"]
[White "Tejas Pai T"]
[Black "Manjunath, J.."]
[Result "1/2-1/2"]
[ECO "D45"]
[WhiteElo "1270"]
[BlackElo "1979"]
[Annotator "RC"]
[PlyCount "139"]
[EventDate "2024.01.20"]
[EventType "swiss"]
[EventCountry "IND"]
[SourceTitle "playchess.com"]
[Source "ChessBase"]
[SourceQuality "1"]
[TimeControl "3600+30"]

1. c4 {[%emt 0:00:02]} e6 {[%emt 0:00:08]} 2. Nc3 {[%emt 0:00:11]} d5 {[%emt 0:00:10]} 3. d4 {[%emt 0:00:15]} Nf6 {[%emt 0:00:08]} 4. cxd5 {[%emt 0:00:07]} exd5 {[%emt 0:00:07]} 5. Nf3 {[%emt 0:00:13]} c6 {[%emt 0:00:13]} 6. e3 {[%emt 0:00:46]} Bd6 {[%emt 0:01:46]} 7. Bd3 {[%emt 0:00:23]} Nbd7 {[%emt 0:03:00]} 8. O-O {[%emt 0:00:50]} O-O {[%emt 0:00:08]} 9. Re1 {[%emt 0:01:03]} Re8 {[%emt 0:00:18]} 10. b3 {[%emt 0:03:57]} Ne4 {[%emt 0:03:17]} 11. Bb2 {[%emt 0:03:58]} Ndf6 {[%emt 0:02:01]} 12. Qc2 {[%emt 0:01:28]} Nxc3 {[%emt 0:18:00]} 13. Bxc3 {[%emt 0:00:21]} Ne4 {[%emt 0:03:34]} 14. h3 {[%emt 0:04:19]} Qf6 {[%emt 0:02:28]} 15. Bxe4 {[%emt 0:10:47]} dxe4 {[%emt 0:01:49]} 16. Ne5 {[%emt 0:01:15]} Bf5 {[%emt 0:01:09]} 17. Qe2 {[%emt 0:01:12]} Qg5 {[%emt 0:01:15]} 18. f4 {[%emt 0:03:57]} exf3 {[%emt 0:00:30]} 19. Nxf3 {[%emt 0:00:17]} Qg3 {[%emt 0:00:52]} 20. Qf2 {[%emt 0:00:38]} Be4 {[%emt 0:00:32]} 21. Ne5 {[%emt 0:03:02]} Bxe5 {[%emt 0:01:24]} 22. dxe5 {[%emt 0:00:10]} Qg6 {[%emt 0:01:11]} 23. Rad1 {[%emt 0:00:27]} Rad8 {[%emt 0:00:17]} 24. Kh2 {[%emt 0:03:33]} c5 {[%emt 0:00:59]} 25. Qg3 {[%emt 0:04:02]} b6 {[%emt 0:11:20]} 26. Qxg6 {[%emt 0:05:40]} hxg6 {[%emt 0:00:44]} 27. g4 {[%emt 0:01:54]} Bf3 {[%emt 0:01:39]} 28. Rd6 {[%emt 0:01:12]} Rxd6 {[%emt 0:01:24]} 29. exd6 {[%emt 0:00:12]} Bc6 {[%emt 0:00:27]} 30. e4 {[%emt 0:00:34]} f6 {[%emt 0:00:43]} 31. e5 {[%emt 0:01:58]} Kf7 {[%emt 0:00:38]} 32. Kg3 {[%emt 0:00:32]} Bd7 {[%emt 0:01:58]} 33. h4 {[%emt 0:01:58]} f5 {[%emt 0:00:38]} 34. gxf5 {[%emt 0:01:15]} gxf5 {[%emt 0:00:04]} 35. Kf4 {[%emt 0:00:41]} Be6 {[%emt 0:00:18]} 36. Rd1 {[%emt 0:00:48]} Rh8 {[%emt 0:00:45]} 37. Be1 {[%emt 0:02:08]} Bd7 {[%emt 0:00:17]} 38. Rd2 {[%emt 0:01:00]} Rh6 {[%emt 0:01:23]} 39. Rg2 {[%emt 0:00:41]} Rg6 {[%emt 0:00:24]} 40. Rg5 {[%emt 0:02:05]} Rh6 {[%emt 0:00:58]} 41. Rg2 {[%emt 0:01:07]} Re6 {[%emt 0:00:28]} 42. Rg1 {[%emt 0:01:32]} Re8 {[%emt 0:00:13]} 43. Rg2 {[%emt 0:01:39]} Rh8 {[%emt 0:00:33]} 44. Rg1 {[%emt 0:01:10]} c4 {[%emt 0:00:51]} 45. b4 {[%emt 0:02:19]} c3 {[%emt 0:01:43]} 46. Rg2 {[%emt 0:00:05]} Ba4 {[%emt 0:00:30]} 47. Bxc3 {[%emt 0:02:31]} Rxh4+ {[%emt 0:00:20]} 48. Kxf5 {[%emt 0:00:07]} Bd7+ {[%emt 0:00:54]} 49. Kg5 {[%emt 0:00:15]} Rc4 {[%emt 0:00:40]} 50. Rg3 {[%emt 0:00:42]} Re4 {[%emt 0:00:56]} 51. a3 {[%emt 0:00:52]} Re2 {[%emt 0:00:51]} 52. Kf4 {[%emt 0:01:09]} Ra2 {[%emt 0:00:44]} 53. Bd4 {[%emt 0:00:40]} g6 {[%emt 0:00:35]} 54. Rc3 {[%emt 0:00:59]} Ke6 {[%emt 0:00:16]} 55. Rg3 {[%emt 0:00:25]} Kd5 {[%emt 0:01:11]} 56. Bg1 {[%emt 0:00:45]} Bf5 {[%emt 0:00:13]} 57. Rg5 {[%emt 0:00:17]} Ra1 {[%emt 0:01:09]} 58. Bh2 {[%emt 0:01:25]} Ke6 {[%emt 0:01:03]} 59. Rg3 {[%emt 0:00:21]} Rf1+ {[%emt 0:03:24]} 60. Ke3 {[%emt 0:00:04]} Re1+ {[%emt 0:00:34]} 61. Kd4 {[%emt 0:00:24]} Re2 {[%emt 0:00:49]} 62. Bg1 {[%emt 0:00:54]} Re4+ {[%emt 0:00:34]} 63. Kc3 {[%emt 0:00:15]} Rxe5 {[%emt 0:00:04]} 64. Re3 {[%emt 0:00:18]} Rxe3+ {[%emt 0:00:23]} 65. Bxe3 {[%emt 0:00:03]} Kxd6 {[%emt 0:00:08]} 66. Kd4 {[%emt 0:00:02]} Ke6 {[%emt 0:01:09]} 67. a4 {[%emt 0:00:07]} Bc2 {[%emt 0:00:40]} 68. a5 {[%emt 0:00:02]} Kf5 {[%emt 0:00:39]} 69. axb6 {[%emt 0:00:09]} axb6 {[%emt 0:00:05]} 70. b5 {[%emt 0:00:07]} 1/2-1/2

[Event "1st Bangalore GM-Open-B 2024"]
[Site "Bangalore"]
[Date "2024.01.18"]
[Round "1.3"]
[White "Samyak Dharewa"]
[Black "Aarya Satish Chikodi"]
[Result "1-0"]
[ECO "C70"]
[WhiteElo "1972"]
[BlackElo "1269"]
[Annotator "RC"]
[PlyCount "63"]
[EventDate "2024.01.20"]
[EventType "swiss"]
[EventCountry "IND"]
[SourceTitle "playchess.com"]
[Source "ChessBase"]
[SourceQuality "1"]
[TimeControl "3600+30"]

1. e4 {[%emt 0:00:03]} e5 {[%emt 0:00:06]} 2. Nf3 {[%emt 0:00:03]} Nc6 {[%emt 0:00:04]} 3. Bb5 {[%emt 0:00:12]} Bc5 {[%emt 0:00:11]} 4. c3 {[%emt 0:00:19]} a6 {[%emt 0:01:25]} 5. Ba4 {[%emt 0:00:14]} Nge7 {[%emt 0:03:53]} 6. d4 {[%emt 0:01:24]} exd4 {[%emt 0:00:10]} 7. cxd4 {[%emt 0:00:06]} Bb4+ {[%emt 0:00:55]} 8. Nc3 {[%emt 0:00:12]} O-O {[%emt 0:00:52]} 9. d5 {[%emt 0:06:11]} Na7 {[%emt 0:02:38]} 10. O-O {[%emt 0:01:41]} Ng6 {[%emt 0:03:25]} 11. Nd4 {[%emt 0:09:26]} d6 {[%emt 0:01:11]} 12. f4 {[%emt 0:02:16]} Bd7 {[%emt 0:09:08]} 13. Bxd7 {[%emt 0:05:22]} Qxd7 {[%emt 0:00:09]} 14. f5 {[%emt 0:00:06]} Ne5 {[%emt 0:00:23]} 15. f6 {[%emt 0:00:16]} Bc5 {[%emt 0:03:40]} 16. fxg7 {[%emt 0:03:55]} Rfe8 {[%emt 0:04:31]} 17. Rf5 {[%emt 0:05:09]} Kxg7 {[%emt 0:01:01]} 18. Bg5 {[%emt 0:02:11]} Rg8 {[%emt 0:01:55]} 19. Kh1 {[%emt 0:01:17]} Kf8 {[%emt 0:05:50]} 20. Ne6+ {[%emt 0:00:14]} Ke8 {[%emt 0:02:59]} 21. Nxc5 {[%emt 0:00:10]} Qxf5 {[%emt 0:01:55]} 22. exf5 {[%emt 0:00:12]} Rxg5 {[%emt 0:00:23]} 23. Nd3 {[%emt 0:02:35]} Rxf5 {[%emt 0:01:51]} 24. Nxe5 {[%emt 0:00:31]} Rxe5 {[%emt 0:00:07]} 25. Qf3 {[%emt 0:00:08]} Kf8 {[%emt 0:01:01]} 26. Rf1 {[%emt 0:00:19]} Re7 {[%emt 0:00:29]} 27. Ne4 {[%emt 0:00:21]} Nb5 {[%emt 0:01:24]} 28. Qh5 {[%emt 0:00:50]} Ke8 {[%emt 0:00:56]} 29. Qg5 {[%emt 0:01:07]} Rxe4 {[%emt 0:00:38]} 30. Qg8+ {[%emt 0:00:06]} Kd7 {[%emt 0:00:10]} 31. Rxf7+ {[%emt 0:00:16]} Re7 {[%emt 0:00:27]} 32. Rxe7+ {[%emt 0:00:07]} 1-0

[Event "1st Bangalore GM-Open-B 2024"]
[Site "Bangalore"]
[Date "2024.01.18"]
[Round "1.4"]
[White "Vinayak Tripathy"]
[Black "Nadkarni, Ishan"]
[Result "0-1"]
[ECO "C02"]
[WhiteElo "1269"]
[BlackElo "1968"]
[Annotator "RC"]
[PlyCount "82"]
[EventDate "2024.01.20"]
[EventType "swiss"]
[EventCountry "IND"]
[SourceTitle "playchess.com"]
[Source "ChessBase"]
[SourceQuality "1"]
[TimeControl "3600+30"]

1. e4 {[%emt 0:00:01]} e6 {[%emt 0:00:07]} 2. d4 {[%emt 0:00:04]} d5 {[%emt 0:00:02]} 3. e5 {[%emt 0:00:28]} c5 {[%emt 0:00:10]} 4. c3 {[%emt 0:00:25]} Nc6 {[%emt 0:00:02]} 5. Nf3 {[%emt 0:00:11]} Bd7 {[%emt 0:00:01]} 6. Be3 {[%emt 0:01:59]} Qb6 {[%emt 0:00:19]} 7. b3 {[%emt 0:01:42]} cxd4 {[%emt 0:01:57]} 8. Nxd4 {[%emt 0:11:10]} Nxe5 {[%emt 0:07:28]} 9. Qh5 {[%emt 0:03:21]} Qc7 {[%emt 0:04:35]} 10. Bb5 {[%emt 0:04:36]} g6 {[%emt 0:07:38]} 11. Qe2 {[%emt 0:00:32]} Nc6 {[%emt 0:01:09]} 12. Nd2 {[%emt 0:01:14]} a6 {[%emt 0:00:45]} 13. Nxc6 {[%emt 0:05:06]} Bxc6 {[%emt 0:02:20]} 14. Bd4 {[%emt 0:01:55]} Bxb5 {[%emt 0:00:18]} 15. c4 {[%emt 0:00:01]} dxc4 {[%emt 0:05:25]} 16. bxc4 {[%emt 0:00:20]} O-O-O {[%emt 0:01:31]} 17. Bxh8 {[%emt 0:00:39]} Bb4 {[%emt 0:00:48]} 18. cxb5 {[%emt 0:02:54]} Rxd2 {[%emt 0:03:22]} 19. Qxd2 {[%emt 0:00:03]} Bxd2+ {[%emt 0:06:05]} 20. Kxd2 {[%emt 0:00:01]} Qf4+ {[%emt 0:00:26]} 21. Ke2 {[%emt 0:01:29]} Qe4+ {[%emt 0:01:00]} 22. Kd2 {[%emt 0:00:04]} Qxg2 {[%emt 0:02:12]} 23. Rac1+ {[%emt 0:00:42]} Kd7 {[%emt 0:00:15]} 24. Rhd1 {[%emt 0:02:50]} Ne7 {[%emt 0:00:59]} 25. Be5 {[%emt 0:05:30]} Qxf2+ {[%emt 0:00:19]} 26. Kc3+ {[%emt 0:00:47]} Nd5+ {[%emt 0:00:08]} 27. Kb3 {[%emt 0:00:11]} axb5 {[%emt 0:04:12]} 28. Rc7+ {[%emt 0:03:40]} Ke8 {[%emt 0:00:15]} 29. Rc8+ {[%emt 0:01:34]} Ke7 {[%emt 0:00:26]} 30. Bd4 {[%emt 0:06:27]} Qf3+ {[%emt 0:00:57]} 31. Kc2 {[%emt 0:00:02]} Nb4+ {[%emt 0:01:09]} 32. Kd2 {[%emt 0:00:52]} Qd3+ {[%emt 0:01:13]} 33. Ke1 {[%emt 0:02:36]} Nc2+ {[%emt 0:00:18]} 34. Rxc2 {[%emt 0:00:09]} Qxc2 {[%emt 0:00:04]} 35. Rd2 {[%emt 0:00:14]} Qe4+ {[%emt 0:00:25]} 36. Kf2 {[%emt 0:00:34]} e5 {[%emt 0:01:05]} 37. Bc5+ {[%emt 0:00:28]} Ke6 {[%emt 0:00:05]} 38. Rd6+ {[%emt 0:00:31]} Kf5 {[%emt 0:00:02]} 39. Be3 {[%emt 0:00:26]} Qh4+ {[%emt 0:00:34]} 40. Kg2 {[%emt 0:00:15]} Qg4+ {[%emt 0:00:02]} 41. Kh1 {[%emt 0:01:07]} Qf3+ {[%emt 0:01:14]} 0-1

[Event "1st Bangalore GM-Open-B 2024"]
[Site "Bangalore"]
[Date "2024.01.18"]
[Round "1.5"]
[White "Selvamurugan B"]
[Black "Rakesh Kumar Sinha"]
[Result "1-0"]
[ECO "A01"]
[WhiteElo "1920"]
[BlackElo "1268"]
[Annotator "RC"]
[PlyCount "163"]
[EventDate "2024.01.20"]
[EventType "swiss"]
[EventCountry "IND"]
[SourceTitle "playchess.com"]
[Source "ChessBase"]
[SourceQuality "1"]
[TimeControl "3600+30"]

1. b3 {[%emt 0:00:07]} e5 {[%emt 0:00:12]} 2. Bb2 {[%emt 0:00:04]} Nc6 {[%emt 0:00:31]} 3. e3 {[%emt 0:00:05]} Nf6 {[%emt 0:00:31]} 4. Bb5 {[%emt 0:00:06]} d6 {[%emt 0:01:20]} 5. Ne2 {[%emt 0:04:16]} Be7 {[%emt 0:00:23]} 6. O-O {[%emt 0:00:13]} O-O {[%emt 0:00:16]} 7. d4 {[%emt 0:02:32]} exd4 {[%emt 0:00:48]} 8. Bxc6 {[%emt 0:00:12]} bxc6 {[%emt 0:00:18]} 9. Nxd4 {[%emt 0:00:02]} Bb7 {[%emt 0:00:42]} 10. Qf3 {[%emt 0:00:05]} Qd7 {[%emt 0:00:48]} 11. Nf5 {[%emt 0:00:54]} Rab8 {[%emt 0:00:37]} 12. Qf4 {[%emt 0:02:03]} Bc8 {[%emt 0:02:02]} 13. e4 {[%emt 0:03:06]} Rb5 {[%emt 0:01:58]} 14. c4 {[%emt 0:03:58]} Rxf5 {[%emt 0:00:18]} 15. exf5 {[%emt 0:00:09]} Qxf5 {[%emt 0:00:04]} 16. Qxf5 {[%emt 0:00:11]} Bxf5 {[%emt 0:00:15]} 17. Re1 {[%emt 0:00:05]} Bd8 {[%emt 0:00:22]} 18. Nd2 {[%emt 0:01:03]} d5 {[%emt 0:00:57]} 19. Rac1 {[%emt 0:00:09]} Ne4 {[%emt 0:00:42]} 20. Nxe4 {[%emt 0:00:08]} dxe4 {[%emt 0:00:57]} 21. Rcd1 {[%emt 0:00:58]} Be7 {[%emt 0:00:42]} 22. Be5 {[%emt 0:07:14]} Bb4 {[%emt 0:02:47]} 23. Re3 {[%emt 0:00:16]} Bc5 {[%emt 0:00:35]} 24. Rg3 {[%emt 0:00:33]} g6 {[%emt 0:01:14]} 25. Bxc7 {[%emt 0:00:14]} Re8 {[%emt 0:00:39]} 26. Rd8 {[%emt 0:00:18]} Rxd8 {[%emt 0:00:20]} 27. Bxd8 {[%emt 0:00:02]} Kf8 {[%emt 0:00:27]} 28. Bf6 {[%emt 0:00:26]} Ke8 {[%emt 0:00:22]} 29. Bc3 {[%emt 0:02:18]} Kd7 {[%emt 0:00:25]} 30. b4 {[%emt 0:00:11]} Bd6 {[%emt 0:00:10]} 31. Re3 {[%emt 0:00:03]} Bf4 {[%emt 0:00:02]} 32. Re1 {[%emt 0:00:10]} a6 {[%emt 0:02:16]} 33. h3 {[%emt 0:01:23]} h5 {[%emt 0:00:04]} 34. a4 {[%emt 0:00:15]} Kc8 {[%emt 0:01:09]} 35. b5 {[%emt 0:01:02]} cxb5 {[%emt 0:01:02]} 36. cxb5 {[%emt 0:00:01]} axb5 {[%emt 0:00:01]} 37. axb5 {[%emt 0:00:02]} Kb7 {[%emt 0:00:03]} 38. Bd4 {[%emt 0:00:15]} Bc7 {[%emt 0:02:12]} 39. Ra1 {[%emt 0:03:33]} Bb6 {[%emt 0:00:14]} 40. Be3 {[%emt 0:00:02]} Bd7 {[%emt 0:00:38]} 41. Rd1 {[%emt 0:00:22]} Bxb5 {[%emt 0:00:34]} 42. Bxb6 {[%emt 0:01:34]} Kxb6 {[%emt 0:00:02]} 43. Rd4 {[%emt 0:00:21]} Bc6 {[%emt 0:00:34]} 44. h4 {[%emt 0:01:00]} Kc5 {[%emt 0:00:05]} 45. Rd8 {[%emt 0:00:04]} Bd5 {[%emt 0:01:18]} 46. Kh2 {[%emt 0:00:05]} Kd4 {[%emt 0:00:38]} 47. Kg3 {[%emt 0:00:08]} Ke5 {[%emt 0:01:03]} 48. Re8+ {[%emt 0:00:50]} Kf5 {[%emt 0:01:28]} 49. Rb8 {[%emt 0:00:05]} Ke5 {[%emt 0:01:33]} 50. Rb5 {[%emt 0:00:04]} f6 {[%emt 0:00:58]} 51. Ra5 {[%emt 0:00:06]} f5 {[%emt 0:00:51]} 52. Kh2 {[%emt 0:02:09]} f4 {[%emt 0:00:22]} 53. g3 {[%emt 0:00:18]} f3 {[%emt 0:01:14]} 54. Kg1 {[%emt 0:00:04]} Kd4 {[%emt 0:00:24]} 55. Kf1 {[%emt 0:01:35]} Be6 {[%emt 0:01:23]} 56. Ke1 {[%emt 0:00:10]} Kd3 {[%emt 0:00:16]} 57. Ra3+ {[%emt 0:00:08]} Kc2 {[%emt 0:00:36]} 58. Ra6 {[%emt 0:00:21]} Bf5 {[%emt 0:00:01]} 59. Ra2+ {[%emt 0:00:41]} Kb3 {[%emt 0:00:59]} 60. Ra6 {[%emt 0:00:35]} Kc2 {[%emt 0:00:06]} 61. Rd6 {[%emt 0:00:17]} Kc3 {[%emt 0:00:24]} 62. Kd1 {[%emt 0:00:40]} Kc4 {[%emt 0:01:58]} 63. Kd2 {[%emt 0:00:08]} Kc5 {[%emt 0:00:02]} 64. Rd8 {[%emt 0:00:13]} Kc4 {[%emt 0:00:03]} 65. Ke3 {[%emt 0:00:05]} Kc5 {[%emt 0:06:39]} 66. Rd4 {[%emt 0:05:30]} Kc6 {[%emt 0:00:00]} 67. Rxe4 {[%emt 0:00:42]} Bxe4 {[%emt 0:00:00]} 68. Kxe4 {[%emt 0:00:02]} Kd6 {[%emt 0:00:00]} 69. Kxf3 {[%emt 0:01:37]} Ke5 {[%emt 0:00:00]} 70. g4 {[%emt 0:01:55]} hxg4+ {[%emt 0:00:00]} 71. Kxg4 {[%emt 0:00:02]} Kf6 {[%emt 0:00:00]} 72. Kf4 {[%emt 0:00:05]} Kf7 {[%emt 0:00:00]} 73. Kg5 {[%emt 0:00:14]} Kg7 {[%emt 0:00:00]} 74. f3 {[%emt 0:02:46]} Kf7 {[%emt 0:00:09]} 75. Kh6 {[%emt 0:00:03]} Kf6 {[%emt 0:00:37]} 76. f4 {[%emt 0:00:17]} Kf7 {[%emt 0:00:42]} 77. Kh7 {[%emt 0:00:04]} Kf6 {[%emt 0:00:06]} 78. Kg8 {[%emt 0:00:03]} Ke6 {[%emt 0:00:53]} 79. Kg7 {[%emt 0:00:04]} Kf5 {[%emt 0:00:02]} 80. Kf7 {[%emt 0:00:10]} Kxf4 {[%emt 0:00:24]} 81. Kxg6 {[%emt 0:00:02]} Kg4 {[%emt 0:00:02]} 82. h5 {[%emt 0:00:02]} 1-0

[Event "1st Bangalore GM-Open-B 2024"]
[Site "Bangalore"]
[Date "2024.01.18"]
[Round "2.1"]
[White "Gagan Sahu"]
[Black "Nayak, Biswajit"]
[Result "0-1"]
[ECO "C02"]
[WhiteElo "1412"]
[BlackElo "1990"]
[Annotator "RC"]
[PlyCount "102"]
[EventDate "2024.01.20"]
[EventType "swiss"]
[EventCountry "IND"]
[SourceTitle "playchess.com"]
[Source "ChessBase"]
[SourceQuality "1"]
[TimeControl "3600+30"]

1. e4 {[%emt 0:00:08]} e6 {[%emt 0:01:10]} 2. d4 {[%emt 0:00:11]} d5 {[%emt 0:00:06]} 3. e5 {[%emt 0:00:04]} c5 {[%emt 0:00:05]} 4. c3 {[%emt 0:00:04]} Qb6 {[%emt 0:00:07]} 5. Nf3 {[%emt 0:00:06]} Bd7 {[%emt 0:00:09]} 6. Be2 {[%emt 0:02:06]} Bb5 {[%emt 0:00:07]} 7. Bxb5+ {[%emt 0:03:16]} Qxb5 {[%emt 0:00:03]} 8. a3 {[%emt 0:03:04]} Nc6 {[%emt 0:01:03]} 9. b4 {[%emt 0:01:29]} cxd4 {[%emt 0:00:52]} 10. cxd4 {[%emt 0:00:10]} Nh6 {[%emt 0:01:33]} 11. Bb2 {[%emt 0:03:28]} Be7 {[%emt 0:09:47]} 12. Nc3 {[%emt 0:06:09]} Qc4 {[%emt 0:00:00]} 13. Rc1 {[%emt 0:04:43]} O-O {[%emt 0:00:47]} 14. Na4 {[%emt 0:00:56]} Qa6 {[%emt 0:00:49]} 15. Nc5 {[%emt 0:01:53]} Bxc5 {[%emt 0:01:46]} 16. Rxc5 {[%emt 0:00:09]} Qb6 {[%emt 0:01:24]} 17. O-O {[%emt 0:03:01]} f6 {[%emt 0:01:16]} 18. Qd3 {[%emt 0:05:56]} Qd8 {[%emt 0:07:39]} 19. Re1 {[%emt 0:06:05]} fxe5 {[%emt 0:01:40]} 20. dxe5 {[%emt 0:04:01]} Nf5 {[%emt 0:06:07]} 21. Bc1 {[%emt 0:04:24]} h6 {[%emt 0:01:33]} 22. Bd2 {[%emt 0:01:29]} Rc8 {[%emt 0:04:15]} 23. a4 {[%emt 0:07:02]} Qe7 {[%emt 0:06:16]} 24. Rec1 {[%emt 0:01:11]} Nh4 {[%emt 0:02:00]} 25. Nxh4 {[%emt 0:01:15]} Qxh4 {[%emt 0:00:09]} 26. Qg3 {[%emt 0:01:19]} Qh5 {[%emt 0:01:08]} 27. h3 {[%emt 0:04:47]} Nd4 {[%emt 0:01:24]} 28. Qe3 {[%emt 0:03:25]} Ne2+ {[%emt 0:00:43]} 29. Kh2 {[%emt 0:00:21]} Nxc1 {[%emt 0:00:09]} 30. Bxc1 {[%emt 0:00:27]} Rxc5 {[%emt 0:00:41]} 31. bxc5 {[%emt 0:00:06]} Qd1 {[%emt 0:00:39]} 32. Ba3 {[%emt 0:02:17]} Rf7 {[%emt 0:01:14]} 33. a5 {[%emt 0:01:08]} Qa4 {[%emt 0:00:47]} 34. Bc1 {[%emt 0:00:40]} Qc2 {[%emt 0:01:15]} 35. Bd2 {[%emt 0:00:21]} Qe4 {[%emt 0:01:23]} 36. Qxe4 {[%emt 0:00:39]} dxe4 {[%emt 0:00:03]} 37. Kg3 {[%emt 0:00:24]} Rf5 {[%emt 0:00:12]} 38. Bc3 {[%emt 0:00:26]} a6 {[%emt 0:00:14]} 39. f4 {[%emt 0:00:38]} g5 {[%emt 0:00:14]} 40. fxg5 {[%emt 0:00:30]} hxg5 {[%emt 0:00:10]} 41. Bd4 {[%emt 0:00:22]} Kf7 {[%emt 0:00:15]} 42. h4 {[%emt 0:00:24]} Kg6 {[%emt 0:00:19]} 43. hxg5 {[%emt 0:00:38]} Kxg5 {[%emt 0:00:09]} 44. Be3+ {[%emt 0:00:09]} Kg6 {[%emt 0:00:06]} 45. Kg4 {[%emt 0:00:23]} Rxe5 {[%emt 0:00:59]} 46. Kf4 {[%emt 0:00:05]} Rg5 {[%emt 0:00:18]} 47. g3 {[%emt 0:00:57]} Kf6 {[%emt 0:00:23]} 48. g4 {[%emt 0:00:59]} e5+ {[%emt 0:00:05]} 49. Kxe4 {[%emt 0:00:04]} Rxg4+ {[%emt 0:00:04]} 50. Kd5 {[%emt 0:00:12]} Ra4 {[%emt 0:00:06]} 51. Bc1 {[%emt 0:01:26]} Rd4# {[%emt 0:00:11]} 0-1